{"text_format":"3","workbook":"xlsx","n_sheets":3,"sheets":["general","SW-R","SW-L"],"not_rendered":{"images":13,"defined_names":1},"read":"whole","date_system":"1900"}

{"sheet":"general","index":0,"n_rows":136,"n_cols":42,"rows_kept":136,"merged":[[1,21,2,27],[3,23,3,27],[6,10,6,12],[6,17,6,18],[8,10,8,12],[10,3,10,5],[10,10,10,12],[10,17,11,17],[11,13,13,13],[11,18,12,18],[12,16,13,16],[13,17,13,18],[14,2,16,2],[14,7,17,7],[14,17,17,17],[14,18,16,18],[16,1,18,1],[16,19,18,19],[18,2,19,2],[18,18,19,18],[19,19,19,20],[20,1,27,1],[20,20,22,20],[21,19,26,19],[26,7,27,7],[29,2,30,2],[29,4,30,4],[29,7,30,7],[29,17,30,17],[29,24,29,26],[37,2,38,2],[40,4,40,5],[46,23,47,27],[48,17,49,27],[51,17,52,27],[53,17,54,27],[59,17,59,18],[59,19,59,20],[59,21,59,22],[59,23,59,24],[60,17,60,18],[60,19,60,20],[60,21,60,22],[60,23,60,24],[61,17,62,20],[61,21,62,27],[63,21,65,27],[64,12,64,13],[66,21,67,24],[66,26,66,27],[67,26,67,27]]}
[{"$nulls":29},"č.jaz.",{"$f":"VLOOKUP(E5,AD3:AE11,2,FALSE)","v":4},null,"SVYHLEDAT","CZ","EN","DE","PL","FR","NL","EST","FIN","RU"]
[{"$nulls":21},{"$f":"VLOOKUP(AG12,AG2:AR97,$AE$1+1,FALSE)","v":"PROWADZENIE DLA NISKEGO NADPROŽA POD KĄTEM (FLL-CE)"},{"$nulls":7},"Jazyk","číslo",null,{"$f":"VLOOKUP(AH2,AH2:AR97,$AE$1,FALSE)","v":"Wybierz język"},"Zvolit jazyk: ","Select a language:","Wählen Sie eine Sprache","Wybierz język","Sélectionner une langue","Kies een taal:","Valige keel","Valitse kieli:","Выберите язык:"]
[null,"Zvol jazyk:",{"$nulls":6},{"$f":"VLOOKUP(AG3,AG2:AR97,$AE$1+1,FALSE)","v":"Szerokość otworu"},null,null,"mm",{"$nulls":17},"CZ",1,null,{"$f":"VLOOKUP(AH3,AH3:AR97,$AE$1,FALSE)","v":"Szerokość otworu"},"Šířka otvoru","Opening width","Lichte Breite","Szerokość otworu","LARGEUR DE BAIE","Dagmaat breedte","Ava laius","Oviaukon leveys","Ширина проема"]
[null,"Select a language:",{"$nulls":21},"W max 5000 mm; H max 5000 mm; max. 24 m2",{"$nulls":5},"EN",2,null,{"$f":"VLOOKUP(AH4,AH4:AR98,$AE$1,FALSE)","v":"Wysokość otworu"},"Výška otvoru","Opening height","Lichte Höhe","Wysokość otworu","HAUTEUR DE BAIE","Dagmaat hoogte","Ava kõrgus","Oviaukon korkeus","Высота проема"]
[null,"Wählen Sie eine Sprache:",null,null,"PL",{"$nulls":3},{"$f":"VLOOKUP(AG4,AG2:AR97,$AE$1+1,FALSE)","v":"Wysokość otworu"},null,null,"mm",null,null,{"$f":"VLOOKUP(AH100,AH100:AR176,$AE$1,FALSE)","v":"Prosimy o wypełnienie pól oznaczonych kolorem!"},{"$nulls":14},"DE",3,null,{"$f":"VLOOKUP(AH5,AH5:AR97,$AE$1,FALSE)","v":"Widok od środka"},"POHLED ZEVNITŘ","INTERIOR VIEW","INNENANSICHT","Widok od środka","VUE INTERIEURE","BINNENAANZICHT","seestvaade","SISÄLTÄPÄIN KUVATTUNA","Вид изнутри"]
[null,"Wybierz język:",{"$nulls":27},"PL",4,null,{"$f":"VLOOKUP(AH6,AH6:AR101,$AE$1,FALSE)","v":"Przekrój A-A"},"ŘEZ A-A","SECTION A-A","DURCHSCHNITT A-A","Przekrój A-A","COUPE A-A","DOORSNEDE A-A","vaade A-A","LEIKKAUS A-A","Разрез А-А"]
[null,"Sélectionner une langue:",{"$nulls":6},{"$f":"VLOOKUP(AG102,AG8:AR102,$AE$1+1,FALSE)","v":"Sterowanie"},{"$nulls":5},{"$f":"IF(OR(K7=AG103,K7=\"\"),\"\",VLOOKUP(AG107,AG8:AL107,$AE$1+1,FALSE))","v":""},{"$nulls":14},"FR",5,null,{"$f":"VLOOKUP(AH7,AH7:AR101,$AE$1,FALSE)","v":"Przekrój B-B"},"ŘEZ B-B","SECTION B-B","DURCHSCHNITT B-B","Przekrój B-B","COUPE B-B","DOORSNEDE B-B","VAADE B-B","LEIKKAUS B-B","Разрез B-B"]
[null,"Valige keel",{"$nulls":27},"NL",6,null,{"$f":"VLOOKUP(AH8,AH8:AR102,$AE$1,FALSE)","v":"Uwaga:"},"POZNÁMKA:","NOTE:","ACHTUNG:","Uwaga:","Remarque:","OPMERKING:","MÄRKUS","HUOMAUTUS:","ПРИМЕЧАНИЯ:"]
[null,"Valitse kieli:",{"$nulls":6},{"$f":"AG118","v":"Rodzaj panelu"},{"$nulls":20},"EST",7]
[null,"Выберите язык:",{"$nulls":14},{"$f":"VLOOKUP(AG6,AG2:AR97,$AE$1+1,FALSE)","v":"Przekrój A-A"},{"$nulls":12},"FIN",8]
[{"$nulls":3},{"$f":"VLOOKUP(AG5,AG2:AR97,$AE$1+1,FALSE)","v":"Widok od środka"},{"$nulls":4},{"$f":"AG128","v":"Kąt"},{"$nulls":8},{"$f":"IF($K$7=$AG$103,$K$5+970,$K$5+970)","v":970},{"$nulls":11},"RU",9]
[{"$nulls":13},{"$f":"\"A=\"&P58","v":"A=110"},null,null,{"$f":"P61","v":740},{"$nulls":15},{"$f":"VLOOKUP(AH12,AH12:AR106,$AE$1,FALSE)","v":"PROWADZENIE DLA NISKEGO NADPROŽA POD KĄTEM (FLL-CE)"},"VEDENÍ POD ÚHLEM PRO NÍZKÝ PŘEKLAD (FLL-CE)","ROOF LINE FOLLOWING SYSTEM, LOW LIFT SYSTEM (FLL-CE)","DACHFOLGESYSTEM NIEDRIGSTURZ BESCHLAG (FLL-CE)","PROWADZENIE DLA NISKEGO NADPROŽA POD KĄTEM (FLL-CE)","LEVEE REDUITE avec REFOULEMENT TABLIER SOUS RAMPANT TOITURE (FLL-CE)","FLL-CE","Katusekallet järgiv madal tõste (FLL-CE)","KALLISTUKSELLA MATALANOSTO (FLL-CE)","СИСТЕМА НАПРАВЛЯЮЩИХ ВДОЛЬ КРЫШИ, НИЗКИЙ НАКЛОННЫЙ ПОДЪЕМ (FLL-CE)"]
[{"$nulls":32},{"$f":"VLOOKUP(AH13,AH13:AR107,$AE$1,FALSE)","v":"linki WEWNĄTRZ"},"LANKA UVNITŘ","cables INSIDE","Seile innen der Führungschiene","linki WEWNĄTRZ","Câbles INTERIEURS","verenpakket boven latei","Trossid sees","vaijerit SISÄLLÄ","ТРОСЫ ВНУТРИ "]
[{"$nulls":17},{"$f":"K5","v":0},{"$nulls":14},{"$f":"VLOOKUP(AH14,AH14:AR108,$AE$1,FALSE)","v":"pro HL>600 i HL<=1200"},"pro HL>600 a HL<=1200","for HL>600 and HL<=1200","pro HL>600 und HL<=1200","pro HL>600 i HL<=1200","pro HL>600 et HL<=1200","van HL>600 tot HL<=1200","HL>600 ja HL<=1200","pro HL>600 ja HL<=1200","при высоте подъема > 600 и <= 1200"]
[{"$nulls":17},{"$f":"IF(R11<3000,0,IF(AND(R11>=3000,R11<4500),K5/2,(K5/3*2)))","v":0},{"$nulls":14},{"$f":"VLOOKUP(AH15,AH15:AR109,$AE$1,FALSE)","v":"Panel 40 mm"},"PANEL 40mm","SECTION THICKNESS 40 mm","Paneel 40 mm","Panel 40 mm","40 mm PANNEAU","PANEEL 40 mm","Paneel 40 mm","Lamelli 40mm","ТОЛЩИНА СЕКЦИИ 40мм "]
[{"$nulls":32},{"$f":"VLOOKUP(AH16,AH16:AR110,$AE$1,FALSE)","v":"Max. W x H 4000x4000"},"Max. W x H 4000x4000","Max. W x H 4000x4000","Max. W x H 4000x4000","Max. W x H 4000x4000","Max. W x H 4000x4000","Max. W x H 4000x4000","Max. W x H 4000x4000","Max. W x H 4000x4000","макс. ШхВ (WxH) 4000x4000"]
[null,{"$f":"\"F= \"&P55","v":"F= 230"},{"$nulls":17},{"$f":"\"F=\"&P55","v":"F=230"}]
[]
["*"]
[{"$nulls":8},{"$f":"VLOOKUP($AG$48,$AG$2:$AR$97,$AE$1+1,FALSE)","v":"niezbędna przestrzeń boczna dla silnika lub napędu łańcuchowego ( L lub R )"},{"$nulls":23},{"$f":"VLOOKUP(AH20,AH20:AR114,$AE$1,FALSE)","v":"montaż do muru i cegły"},"Montáž na cihlové zdivo","mounting on brickwork","Montage auf Mauerwerk und Ziegel","montaż do muru i cegły","montage sur béton","montage op beton","Paigaldus kiviseinale","asennus tiiliseinän","монтаж на бетон"]
[null,{"$f":"\"H= \"&K5","v":"H= "},{"$nulls":22},{"$f":"VLOOKUP(AG20,AG2:AR97,$AE$1+1,FALSE)","v":"montaż do muru i cegły"},{"$nulls":7},{"$f":"VLOOKUP(AH21,AH21:AR115,$AE$1,FALSE)","v":"montaż do betonu porowatego"},"Montáž na porobeton","mounting on cellular concrete","Montage auf Porenbeton oder Gasbeton","montaż do betonu porowatego","montage sur parpaing creux","montage op gasbeton","Paigaldus poorbetoonile","asennus betoniin","монтаж на газобетон"]
[{"$nulls":8},{"$f":"VLOOKUP($AG$48,$AG$2:$AR$97,$AE$1+1,FALSE)","v":"niezbędna przestrzeń boczna dla silnika lub napędu łańcuchowego ( L lub R )"},{"$nulls":10},{"$f":"\"H= \"&K5","v":"H= "},{"$nulls":12},{"$f":"VLOOKUP(AH22,AH22:AR116,$AE$1,FALSE)","v":"montaż do płaszcza"},"Montáž na opláštění","mounting on insulated cladding","Montage auf ISO-Trapezblechfassade","montaż do płaszcza","montage sur structure métallique  (a fournir par le charpentier)","montage op binnendooscontructie met damwandbeplating","Paigaldus soojustatud seinapaneelile","asennus eristettyyn seinäelementtiin","монтаж на металлокаркас"]
[{"$nulls":8},{"$f":"VLOOKUP(AG49,AG2:AR97,$AE$1+1,FALSE)","v":"powierzchnia montażowa dla jednostki sterującej silnika wymiary 250 x 400 mm"},{"$nulls":25},"mounting on insulated cladding","Montage auf ISO-Trapezblechfassade"]
[{"$nulls":8},{"$f":"VLOOKUP(AG50,AG2:AR97,$AE$1+1,FALSE)","v":"oś ok. 1.400 do 1.500 mm od podłogi"}]
[{"$nulls":32},{"$f":"VLOOKUP(AH25,AH25:AR119,$AE$1,FALSE)","v":"PRACE, KTÓRE MUSZĄ ZOSTAĆ WYKONANE PRZEZ KLIENTA PRZED WYKONANIEM MONTAŻU, O ILE NIE UZGODNIONO INACZEJ."},"PRÁCE, KTERÉ MUSÍ BÝT PROVEDENY ZÁKAZNÍKEM PŘED MONTÁŽÍ, POKUD NEBYLO DOHODNUTO JINAK","WORK TO BE CARRIED OUT BY CUSTOMER, UNLESS IN ADVANCE OTHERWISE IS AGREED IN WRITING.","VORBEREITUNGEN UND ARBEITEN DIE VOM AUFTRAGGEBER ZU ERBRINGEN SIND, AUßER BEI SCHRIFTLICHER VEREINBARUNG IM VORAUS:","PRACE, KTÓRE MUSZĄ ZOSTAĆ WYKONANE PRZEZ KLIENTA PRZED WYKONANIEM MONTAŻU, O ILE NIE UZGODNIONO INACZEJ.","APPROVISIONNEMENT & TRAVAUX INCOMBANT AU MAITRE D'OUVRAGE  (sauf accord contraire)","VOORZIENINGEN EN WERKZAAMHEDEN DOOR OPDRACHTGEVER TE VERZORGEN, TENZIJ VOORAF SCHRIFTELIJK ANDERS IS OVEREENGEKOMEN ","Kliendi poolt tehtavad ettevalmistustööd v.a juhul kui pole kirjalikult teistmoodi kokku lepitud","ASIAKKAAN TEHTÄVÄT TYÖT, ELLEI ETUKÄTEEN KIRJALLISESTI MUUTOIN SOVITTU ","МАТЕРИАЛЫ И ПРОВЕДЕНИЕ РАБОТ ОБЕСПЕЧИВАЮТСЯ КЛИЕНТОМ,ЕСЛИ ИНОЕ НЕ ОГОВОРЕНО ЗАРАНЕЕ В ПИСЬМЕННОЙ ФОРМЕ"]
[{"$nulls":24},{"$f":"VLOOKUP(AG21,AG2:AR97,$AE$1+1,FALSE)","v":"montaż do betonu porowatego"},{"$nulls":7},"Konstrukcyjne:","Konstrukční:","Constructional :","Bauseits:","Konstrukcyjne:","Structure: ","Bouwkundig:","Ehituslikud:","\nRakenteellinen:","Конструктивно:"]
[{"$nulls":8},{"$f":"VLOOKUP(AG51,AG3:AR98,$AE$1+1,FALSE)","v":"gniazdo CEE 16 A, 5P, 400 V, ochrona za pomocą bezpiecznika 6A (10A), wyłącznik prądowy l=30 mA"},{"$nulls":23},"Przygotowanie powierzchni montażowych dla prowadzenia bramy oraz dla sprężyn.","Příprava montážních ploch pro vedení vrat a pro pružiny.","Supply and fix mounting frame and mounting surfaces for the rails and the spring packet in case of aerated concrete or sandwichpanels etc.","Ein stählerner Montagerahmen zur Befestigung der vertikalen Laufschienen und des Federpakets bei nicht tragfähigen Flächen wie z.B. Porenbeton, Gasbeton, Isolationspanelen u.s.w..","Przygotowanie powierzchni montażowych dla prowadzenia bramy oraz dla sprężyn.","Préparation de la structure de montage des rails de guidage et des ressorts pour une pose sur panneaux isolants","Een stalen montageframe voor de bevestiging van de verticale looprails en het verenpakket bij niet dragende montagevlakken, zoals gasbeton, isolatiepanelen, sandwichpanelen enz.","Avaettevalmistusraami tarnimine ja paigaldus siinide ja vedrude kinnituseks","Toimittaa ja asentaa asennuskehyksen ja asennuspinnat kiskoille ja jousipaketille tapauksessa jossa kevytbetooni tai sandwich-paneeli jne.","Стальная монтажная рама для установки вертикальных направляющих и пружин в случае не несущих монтажных поверхностей, таких как: газобетон, изоляционные панели, сэндвич-панели и т.д."]
[{"$nulls":32},"Montaż prowadzenia poziomego można wykonać w oddaleniu maks. 1 metra od konstrukcji stałej.","Montáž vodorovného vedení může být max. 1 metr od pevné konstrukce.","Mounting possibilities for the horizontal rails up to 1 meter above the rails must be provided.","Befestigungsmöglichkeit für die Zwischen- und Endaufhängung der horizontalen Laufschienen bis zu max. 1 m über diesen Laufschienen.","Montaż prowadzenia poziomego można wykonać w oddaleniu maks. 1 metra od konstrukcji stałej.","Lorsque les possibilités de montage des rails horizontaux dépassent ","Bevestigingsmogelijkheid voor de tussen- en eindophanging van de horizontale looprails tot max. 1m boven deze looprails.","Paigaldusruum ülalpool siini max. 1m","Asennus mahdollisuudet vaakakiskoille enintään 1 metrin korkeudella kiskoista pitää olla mahdollista.","Способы крепления для горизонтальных направляющих максимум до 1м над данными направляющими."]
[{"$nulls":32},"Niezbędne powierzchnie montażowe oraz wolna przestrzeń wg rysunku.","Nezbytné montážní plochy a volný prostor dle nákresu.","Necessary mounting surface and free room as shown.","Benötigte Montageflächen und Freiräume gemäß Zeichnung.","Niezbędne powierzchnie montażowe oraz wolna przestrzeń wg rysunku.","Adapter la structure et l' espace disponible selon nos plans de réservations ci-contre","Benodigde montagevlakken en vrije ruimtes, volgens tekening.","Piisav paigaldusruum vastavalt lisatud joonisele","Tarvittava kiinnityspinta ja vapaa tilaa kuvan mukaisesti.","Необходимые монтажные поверхности и свободное пространство в соответствии с чертежом"]
[null,null,{"$f":"IF($K$7=$AG$103,150,IF(AND($K$7=$AG$104,$R$7=$AG$108),400,IF(AND($K$7=$AG$105,$R$7=$AG$108),400,150)))","v":150},null,{"$f":"$K$3","v":0},null,null,{"$f":"IF($K$7=$AG$103,150,IF(AND($K$7=$AG$104,$R$7=$AG$109),400,IF(AND($K$7=$AG$105,$R$7=$AG$109),400,150)))","v":150},{"$nulls":9},{"$f":"IF(K9=AG120,290,250)","v":250},{"$nulls":6},{"$f":"VLOOKUP($AG$22,$AG$2:$AR$97,$AE$1+1,FALSE)","v":"montaż do płaszcza"},{"$nulls":7},"Przygotowanie elektryczne (dla elektrycznie sterowanej bramy segmentowej) :","Elektrická příprava (pro elektricky ovládaná sekční vrata): ","Electrical supply required to be :","Elektrisch (bei elektrisch bedienten Toren):","Przygotowanie elektryczne (dla elektrycznie sterowanej bramy segmentowej) :","Alimentation electrique  (pour porte motorisée) :","Elektrisch: (bij elektrisch bediende deuren)","Elektriliselt avatavate uste jaoks","Sähkönsyöttö tarvittu:","Электрика (для ворот с электрическим управлением):"]
[{"$nulls":32},"Gniazdo CEE 16 A, 5P, 400 V = gniazdo z przewodnikiem zerowym i uziemiającym","Zásuvka CEE 16 A, 5P, 400 V = zásuvka s nulovým a zemnícím vodičem","400V/230V 3 phase neutral and earth terminating, provided by euro plug socket.","Stromzufuhr 400V/230V mittels Eurosteckdose, 3 Phasen+0+PE max.1 meter vom Schaltkasten.","Gniazdo CEE 16 A, 5P, 400 V = gniazdo z przewodnikiem zerowym i uziemiającym","400V triphase T+N avec prise de raccordement CEE 16 A","Voeding  400V/230V door middel van eurostopcontact, 3 fase+0+PE max. ","Toite vedu ajamini - 400V/230V, 3 faasi","400V / 230V 3 vaihe+neutraali ja maadoitus tarjotuna Euro pistorasiasta.","Питание 400V/230V посредством заземленной евророзетки, 3 фазы+0+РЕ "]
[{"$nulls":32},"Zapewnić odpowiednią powierzchnię montażową dla jednostki sterującej silnika 250x400","Zajistit vhodnou montážní plochu pro řídící jednotku motoru 250 x 400 mm","Provide suitable mounting surface for control panel, dimensions 250 x 400 mm","Montagefläche für Schaltkasten, Abmessungen 250 x400 mm","Zapewnić odpowiednią powierzchnię montażową dla jednostki sterującej silnika 250x400","Assurer une surface de montage adéquate pour le coffret de commande du moteur L.250 x H.400 mm","Montagevlak t.b.v. schakelkast, afmetingen 250 x 400 mm","Kontrolleri jaoks piisava paigaldusruumi tagamine 250x400 mm","Tarjoa sopivan kiinnityspinnan  ohjauspaneelia varten ,mitat 250 x 400 mm","необходимо обеспечить монтажную поверхность для панели управления, размеры 250х400 мм"]
[]
[]
[{"$nulls":32},{"$f":"VLOOKUP(AH35,AH35:AR129,$AE$1,FALSE)","v":"NIEZBĘDNA POWIERZCHNIA MONTAŻOWA"},"NEZBYTNÁ MONTÁŽNÍ PLOCHA","NECESSARY MOUNTING SURFACE","BENÖTIGTE MONTAGEFLÄCHEN","NIEZBĘDNA POWIERZCHNIA MONTAŻOWA","SURFACE NECESSAIRE DE MONTAGE","BENODIGDE MONTAGEVLAKKEN","Vajalik paigaldusruum","TARVITTAVA KIINNITYSPINTA","необходимая монтажная поверхность"]
[{"$nulls":4},{"$f":"VLOOKUP(AG7,AG2:AR97,$AE$1+1,FALSE)","v":"Przekrój B-B"},{"$nulls":27},{"$f":"VLOOKUP(AH36,AH36:AR130,$AE$1,FALSE)","v":"Dodatkowych obszarach montażu konsoli"},"DODATEČNÉ MONTÁŽNÍ PLOCHY PRO KONZOLY","EXTRA PLANES AT WEAK SURFACES","MONTAGEFLÄCHE FÜR DEN MOTOR","Dodatkowych obszarach montażu konsoli","FACILITÉ DE MONTAGE ADDITIONNEL POUR CONSOLE","EXTRA VLAKKEN BIJ ZWAKKE ONDERGROND","Lisaplaadid nõrgale pinnale","LISÄ ASENNUSTILA ","металлокаркас из стальной профильной трубы"]
[{"$nulls":11},{"$f":"VLOOKUP(AG41,AG2:AR97,$AE$1+1,FALSE)","v":"nachylenie podłogi"},{"$nulls":20},{"$f":"VLOOKUP(AH37,AH37:AR131,$AE$1,FALSE)","v":"niezbędne miejsce"},"NEZBYTNÝ VOLNÝ PROSTOR","NECESSARY FREE ROOM","BENÖTIGTER FREIRAUM","niezbędne miejsce","ESPACE LIBRE NECESSAIRE","BENODIGDE VRIJE RUIMTE","Vajalik vaba ruum ","TARVITTAVA VAPAA TILA","необходимое свободное пространство"]
[null,null,250,{"$nulls":29},{"$f":"VLOOKUP(AH38,AH38:AR132,$AE$1,FALSE)","v":"Wolnego miejsca na silnik, napęd łańcuchowy"},"VOLNÝ PROSTOR PRO MOTOR/ŘETĚZ.PŘEVOD","EXTRA FREE ROOM FOR MOTOR/CHAIN","EXTRA FREIRAUM FÜR MOTOR/KETTE","Wolnego miejsca na silnik, napęd łańcuchowy","ESPACE LIBRE POUR MOTEUR / CHAINE DE LEVAGE.","EXTRA VRIJE RUIMTE BIJ MOTOR/KETTING","Lisa vaba ruum mootorile/ketile","LISÄTILA MOOTORIA/KETJUA VARTEN","дополнительное свободное пространство для двигателя/подъемной цепи"]
[]
[]
[{"$nulls":4},{"$f":"C30+E30+H30","v":300},{"$nulls":27},{"$f":"VLOOKUP(AH41,AH41:AR135,$AE$1,FALSE)","v":"nachylenie podłogi"},"sklon podlahy","fall of the floor","Bodenneigung","nachylenie podłogi","réservations seuil béton","vloer met waterkering","pinna langus","kaltevuus","пол с водоотводом"]
[{"$nulls":32},{"$f":"VLOOKUP(AH42,AH42:AR136,$AE$1,FALSE)","v":"w kierunku na zewnątrz"},"směrem ven","outside","nach aussen","w kierunku na zewnątrz",{"$f":"\"\"","v":""},"buitenzijde","väljaspool","ulkopuoli"]
[{"$nulls":32},{"$f":"VLOOKUP(AH43,AH43:AR137,$AE$1,FALSE)","v":"nachylenie 3%"},"sklon 3%","fall 3%","Gefälle 3%","nachylenie 3%","PENTE 3%","afschot 3%","langus 3%","kaltevuus 3%","наклон 3%"]
[{"$nulls":32},{"$f":"VLOOKUP(AH44,AH44:AR138,$AE$1,FALSE)","v":"w kierunku na zewnątrz"},"směrem ven","internal level","Wasserschenkel","w kierunku na zewnątrz","réservations seuil béton","niveau binnen","Sisemine tasand","sisäinen taso"]
[{"$nulls":17},{"$f":"VLOOKUP(AG35,AG2:AR97,$AE$1+1,FALSE)","v":"NIEZBĘDNA POWIERZCHNIA MONTAŻOWA"},{"$nulls":5},{"$f":"VLOOKUP(AG37,AG4:AR98,$AE$1+1,FALSE)","v":"niezbędne miejsce"},{"$nulls":8},{"$f":"VLOOKUP(AH45,AH45:AR139,$AE$1,FALSE)","v":"nachylenie podłogi"},"sklon podlahy","floor with raised","Boden mit","nachylenie podłogi",{"$f":"\"\"","v":""},"vloer met  ","põrand koos tõstetud sisetasandiga","lattia nostetulla","пол с наклоном 3%"]
[]
[{"$nulls":17},{"$f":"VLOOKUP(AG36,AG4:AR98,$AE$1+1,FALSE)","v":"Dodatkowych obszarach montażu konsoli"}]
[null,{"$f":"VLOOKUP(AG8,AG2:AR97,$AE$1+1,FALSE)","v":"Uwaga:"},{"$nulls":30},{"$f":"VLOOKUP(AH48,AH48:AR142,$AE$1,FALSE)","v":"niezbędna przestrzeń boczna dla silnika lub napędu łańcuchowego ( L lub R )"},"nezbytný boční prostor pro motor nebo řetězový pohon ( L nebo R )","necessary side room for electrical- or hauling chain operation (L or R)","Benötigter Freiraum bei Elektro- oder Haspelkettenbedienung (wahlweise L oder R)","niezbędna przestrzeń boczna dla silnika lub napędu łańcuchowego ( L lub R )","écoinçon minimum requis pour le moteur ou treuil a chaîne (L ou R)","benodigde vrije ruimte voor elektrische- of ketting bediening (L of R)","vajalik küljeruum mootori või tali puhul (L või R)","tarvittava tila mootori- tai ketjunostolle (L tai R)","необходимое боковое пространство для электропривода или цепного редуктора (L и R)"]
[null,{"$f":"VLOOKUP(AG54,AG2:AR97,$AE$1+1,FALSE)","v":"Ściany tłumaczenia, obok ściany otworu oraz wszystkie obszary i zbiórki musi być kolor."},{"$nulls":15},{"$f":"VLOOKUP(AG25,AG2:AR97,$AE$1+1,FALSE)","v":"PRACE, KTÓRE MUSZĄ ZOSTAĆ WYKONANE PRZEZ KLIENTA PRZED WYKONANIEM MONTAŻU, O ILE NIE UZGODNIONO INACZEJ."},{"$nulls":14},{"$f":"VLOOKUP(AH49,AH49:AR143,$AE$1,FALSE)","v":"powierzchnia montażowa dla jednostki sterującej silnika wymiary 250 x 400 mm"},"montážní plocha pro řídící jednotku motoru, rozměr 250 x 400 mm","mounting surface for control panel dimensions 250 x 400 mm","Montagefläche für Antriebsteuerung Mass 250 x 400 mm","powierzchnia montażowa dla jednostki sterującej silnika wymiary 250 x 400 mm","surface de montage pour le Coffret de commande  du moteur (dimensions : L.250 x H.400 mm)","montagevlak t.b.v. schakelkast afmetingen 250 x 400 mm","paigalduspind 250x400 mm kontrollerile","kiinnityspinta ohjauspaneelia varten ,mitat 250 x 400 mm","монтажная поверхность для блока управления 250x400мм"]
[null,{"$f":"VLOOKUP(AG55,AG2:AR97,$AE$1+1,FALSE)","v":"Otwór musi być pionowy i prostokątny."},{"$nulls":30},{"$f":"VLOOKUP(AH50,AH50:AR144,$AE$1,FALSE)","v":"oś ok. 1.400 do 1.500 mm od podłogi"},"osa cca 1.400 až 1.500 mm od podlahy","center line ca 1.400 -1.500 mm above floor","Achse ca. 1.400 bis 1.500 mm vom Boden","oś ok. 1.400 do 1.500 mm od podłogi","axe d'env. 1 400 a 1 500 mm a compter ","hartlijn ca. 1.400 - 1.500 boven de vloer","Keskjoon ca 1400-1500 mm põrandast","keskiviiva ca 1,400 -1,500 mm: n korkeudella lattiasta","осевая линия примерно 1.400-1.500 мм над уровнем пола"]
[null,{"$f":"VLOOKUP(AG56,AG2:AR97,$AE$1+1,FALSE)","v":"Podłoga musi być równa i pozioma."},{"$nulls":15},{"$f":"VLOOKUP(AG26,AG2:AR97,$AE$1+1,FALSE)","v":"Konstrukcyjne:"},{"$nulls":14},{"$f":"VLOOKUP(AH51,AH51:AR145,$AE$1,FALSE)","v":"gniazdo CEE 16 A, 5P, 400 V, ochrona za pomocą bezpiecznika 6A (10A), wyłącznik prądowy l=30 mA"},"zásuvka CEE 16 A, 5P, 400 V, jištěno 6 A (10 A) jističem, proudový chránič I=30 mA","Electric outlet CEE 16 A, 5P, 400 V, protect by 6 A (10 A) circuit breaker, residual current device I=30 mA.","Steckdose CEE 16 A, 5P, 400 V, Sicherung 6 A (10 A) mit Schutzschalter, Stromschutz  I=30 mA.","gniazdo CEE 16 A, 5P, 400 V, ochrona za pomocą bezpiecznika 6A (10A), wyłącznik prądowy l=30 mA","prise CEE 16 A, 5P, 400 V, assuré par un disjoncteur 6 A (10 A),  disjoncteur I=30 mA","Eurostopcontact CEE 16 A, 5P, 400V, afgezekerd met 6A (10A), Overstroombeveiliging I=30mA. ","jõupesa CEE 16A, 5P, 400V koos 6A (10A) kaitsmega. Rikkevookukaitse I=30 mA","Pistorasiasta CEE 16A, 5P, 400V, suojattu 6 A (10 A) katkaisijalla, vikavirtasuoja I = 30 mA.","электрическая розетка CEE 16А, 5P, 400V, защита автоматическим выключателем 6А(10А), устройство защитного отключения (УЗО) I=30mA"]
[{"$nulls":17},{"$f":"VLOOKUP(AG27,AG2:AR97,$AE$1+1,FALSE)","v":"Przygotowanie powierzchni montażowych dla prowadzenia bramy oraz dla sprężyn."}]
[null,{"$f":"VLOOKUP(AG59,AG2:AR97,$AE$1+1,FALSE)","v":"Wymiary podane w mm"}]
[null,"W =",{"$f":"VLOOKUP(AG60,AG2:AR97,$AE$1+1,FALSE)","v":"Szerokość otworu"},{"$nulls":3},{"$f":"VLOOKUP(AG75,AG6:AR100,$AE$1+1,FALSE)","v":"Sterowanie ręczne"},{"$nulls":5},{"$f":"VLOOKUP(AG82,AG6:AR100,$AE$1+1,FALSE)","v":"Wolna przestrzeń nad nadprożem (min.)"},{"$nulls":4},{"$f":"VLOOKUP(AG28,AG3:AR97,$AE$1+1,FALSE)","v":"Montaż prowadzenia poziomego można wykonać w oddaleniu maks. 1 metra od konstrukcji stałej."},{"$nulls":14},{"$f":"VLOOKUP(AH54,AH54:AR148,$AE$1,FALSE)","v":"Ściany tłumaczenia, obok ściany otworu oraz wszystkie obszary i zbiórki musi być kolor."},"Stěna nad překladem, stěny vedle otvoru a plochy pro montáž konzol musí být rovné a v jedné rovině.","The rear face of the lintel and the door jambs, as well as the surface for the spring packet must be levelled and in line.","Die hinteren Seiten der Sturze und Pfeiler, sowie die Montagefläche für das Federpaket müssen eben und auf einer Linie liegen.","Ściany tłumaczenia, obok ściany otworu oraz wszystkie obszary i zbiórki musi być kolor.","La surface d'appui pour la pose de la porte sectionnelle doit etre dans le meme plan et verticale.","De achterkanten van de penanten, de latei en de montagevlakken van het verenpakket dienen vlak en in één lijn te liggen.","Kõik paigalduspinnad peavad olema ühes tasapinnas ja loodis","Ylä ja sivukarmien sekä jousipaketin asennuspinnan pitää olla tasaisia ja samassa linjassa","Монтажная поверхность должна быть ровной и распологаться в одной вертикальной плоскости"]
[null,"H =",{"$f":"VLOOKUP(AG61,AG3:AR97,$AE$1+1,FALSE)","v":"Wysokość otworu"},{"$nulls":3},"L/R",{"$f":"VLOOKUP(AG76,AG6:AR100,$AE$1+1,FALSE)","v":"Obie strony"},{"$nulls":3},"min. 150","F",{"$f":"230","v":230},null,{"$f":"IF(K9=AG120,N55+40,N55)","v":230},{"$nulls":16},{"$f":"VLOOKUP(AH55,AH55:AR149,$AE$1,FALSE)","v":"Otwór musi być pionowy i prostokątny."},"Otvor musí být svislý a obdélníkový.","Furthermore the opening must be plumb and square.","Im übrigen müssen die lichten Masse eben und rechtwinklig sein.","Otwór musi być pionowy i prostokątny.","L'ouverture de la baie doit etre parfaitement de niveau et d'equerre.","Tevens moet de dagmaat vlak en haaks zijn.","Ava peab olema täpne ja nelinurkne","Lisäksi oviaukon pitää olla pysty- ja vaakasuora sekä nelikulmainen.","Проем также должен быть ровным и прямоугольным."]
[null,"F = ",{"$f":"VLOOKUP(AG64,AG5:AR99,$AE$1+1,FALSE)","v":"Wolna przestrzeń nad nadprożem"},{"$nulls":3},"D",{"$f":"VLOOKUP(AG79,AG6:AR100,$AE$1+1,FALSE)","v":"Głębokość prowadzenia"},null,null,"H + 970",{"$f":"IF(OR(K3=\"\",K5=\"\"),\"\",K5+970)","v":""},{"$nulls":5},{"$f":"VLOOKUP(AG29,AG2:AR97,$AE$1+1,FALSE)","v":"Niezbędne powierzchnie montażowe oraz wolna przestrzeń wg rysunku."},{"$nulls":14},{"$f":"VLOOKUP(AH56,AH56:AR150,$AE$1,FALSE)","v":"Podłoga musi być równa i pozioma."},"Podlaha musí být rovná a vodorovná.","Floor area must be flat and horizontal.","Der Fussboden muss glatt und waagerecht sein.","Podłoga musi być równa i pozioma.","Le sol doit etre parfaitement horizontal et plan.","De afgewerkte vloer dient vlak en waterpas te liggen.","Põrandapind peab olema sile ja horisontaalne","Lattian pitää olla tasainen ja vaakasuora.","Обработанный пол должен быть ровным и без склонов."]
[null,"A= ",{"$f":"VLOOKUP(AG83,AG6:AR100,$AE$1+1,FALSE)","v":"Oś wału nad nadprożem"},{"$nulls":3},{"$f":"VLOOKUP(AG77,AG6:AR100,$AE$1+1,FALSE)","v":"Sterowanie elektr. lub za pom. przekł. łańc."},{"$nulls":5},{"$f":"VLOOKUP(AG83,AG6:AR100,$AE$1+1,FALSE)","v":"Oś wału nad nadprożem"},{"$nulls":4},{"$f":"VLOOKUP(AG30,AG2:AR97,$AE$1+1,FALSE)","v":"Przygotowanie elektryczne (dla elektrycznie sterowanej bramy segmentowej) :"}]
[null,"L = ",{"$f":"VLOOKUP(AG66,AG7:AR101,$AE$1+1,FALSE)","v":"Wolna przestrzeń W LEWO"},{"$nulls":3},"L/R",{"$f":"VLOOKUP(AG78,AG6:AR100,$AE$1+1,FALSE)","v":"Silnik lub przekł. łańc."},{"$nulls":3},"min. 400","A",110,null,{"$f":"IF(K9=AG120,N58+40,N58)","v":110},null,{"$f":"VLOOKUP(AG31,AG2:AR97,$AE$1+1,FALSE)","v":"Gniazdo CEE 16 A, 5P, 400 V = gniazdo z przewodnikiem zerowym i uziemiającym"}]
[null,"R = ",{"$f":"VLOOKUP(AG67,AG8:AR102,$AE$1+1,FALSE)","v":"Wolna przestrzeń W PRAWO"},{"$nulls":3},"D",{"$f":"VLOOKUP(AG79,AG6:AR100,$AE$1+1,FALSE)","v":"Głębokość prowadzenia"},null,null,"H + 970",{"$f":"IF(OR(K3=\"\",K5=\"\"),\"\",K5+970)","v":""},{"$nulls":20},{"$f":"VLOOKUP(AH59,AH59:AR153,$AE$1,FALSE)","v":"Wymiary podane w mm"},"Rozměry jsou v mm","UNITS in mm","MASSE in mm","Wymiary podane w mm","MESURES en mm","MATEN in mm","Mõõdud mm","YKSIKKÖ mm","размеры в мм:"]
[null,"G=",{"$f":"VLOOKUP(AG69,AG9:AR103,$AE$1+1,FALSE)","v":"Głębokość prowadzenia poziomego"},{"$nulls":3},{"$f":"VLOOKUP(AG80,AG6:AR100,$AE$1+1,FALSE)","v":"Punkty mocowania, jeżeli"},null,"D<3000",{"$nulls":3},{"$f":"AG136","v":"Punkt mocowania dla profilu zamkn 80x40x2"},{"$nulls":4},{"$f":"VLOOKUP(AG86,AG2:AR97,$AE$1+1,FALSE)","v":"Wykonał:"},null,{"$f":"VLOOKUP(AG87,AG2:AR97,$AE$1+1,FALSE)","v":"Skorygował:"},null,{"$f":"VLOOKUP(AG88,AG2:AR97,$AE$1+1,FALSE)","v":"Skorygowano dnia:"},null,{"$f":"VLOOKUP(AG89,AG2:AR97,$AE$1+1,FALSE)","v":"Nazwa pliku:"},null,{"$f":"VLOOKUP(AG90,AG2:AR97,$AE$1+1,FALSE)","v":"Data:"},{"$f":"VLOOKUP(AG91,AG2:AR97,$AE$1+1,FALSE)","v":"Podział.:"},{"$f":"VLOOKUP(AG92,AG2:AR97,$AE$1+1,FALSE)","v":"Format:"},{"$nulls":4},"Szerokość otworu","Šířka otvoru","Opening width","Lichte Breite","Szerokość otworu","LARGEUR DE BAIE","Dagmaat breedte","Ava laius","Oviaukon leveys","ширина проема"]
[null,"D = ",{"$f":"VLOOKUP(AG68,AG9:AR103,$AE$1+1,FALSE)","v":"Głębokość prowadzenia poziomego"},{"$nulls":3},"X",{"$f":"VLOOKUP(AG81,AG6:AR100,$AE$1+1,FALSE)","v":"Punkty mocowania"},null,null,"H ",{"$f":"IF(OR(K3=\"\",K5=\"\"),\"\",K5)","v":""},"S",null,"H+740",{"$f":"K5+740","v":740},null,"K.Luňák",null,"R. Kříž",null,"2019-09-24",null,"STP",null,"2019-09-24","-","A3",{"$nulls":4},"Wysokość otworu","Výška otvoru","Opening height","Lichte Höhe","Wysokość otworu","HAUTEUR DE BAIE","Dagmaat hoogte","Ava kõrgus","Oviaukon korkeus","высота проема"]
[null,"X =",{"$f":"VLOOKUP(AG71,AG13:AR105,$AE$1+1,FALSE)","v":"Punkt mocowania nr 1"},{"$nulls":3},{"$f":"VLOOKUP(AG80,AG6:AR100,$AE$1+1,FALSE)","v":"Punkty mocowania, jeżeli"},null,"3000=<D<4500",{"$nulls":8},"http://door-documents.com/en/indy-installation-drawing-fll-ce",{"$nulls":3},{"$f":"AG93","v":"PRZYGOTOWANIE KONSTRUKCYJNE"},{"$nulls":10},"Wyciąg wysoki","High lift","High lift","Höhe der Führung","Wyciąg wysoki","LEEVE HAUTE","High lift","Kõrge tõste","korkeanosto","Высокий подъем"]
[null,"Y = ",{"$f":"VLOOKUP(AG72,AG14:AR106,$AE$1+1,FALSE)","v":"Punkt mocowania nr 2"},{"$nulls":3},"X",{"$f":"VLOOKUP(AG71,AG6:AR100,$AE$1+1,FALSE)","v":"Punkt mocowania nr 1"},null,null,"H ",{"$f":"IF(OR(K3=\"\",K5=\"\"),\"\",K5)","v":""},{"$nulls":20},"Wysokość stropu","Výška stropu","Interior height","Höhe Innenraum","Wysokość stropu","HAUTEUR SOUS PLAFOND","Hoogte binnenruimte","Sisemine kõrgus","sisäkorkeus","высота внутри помещения до перекрытий"]
[null,"Z = ",{"$f":"VLOOKUP(AG111,AG6:AR120,$AE$1+1,FALSE)","v":"Wariant montażu sprężyn"},{"$nulls":3},"Y",{"$f":"VLOOKUP(AG72,AG6:AR100,$AE$1+1,FALSE)","v":"Punkt mocowania nr 2"},null,null,"1/2 X",{"$f":"IF(OR(K3=\"\",K5=\"\"),\"\",L63/2)","v":""},{"$nulls":9},{"$f":"AG12","v":"PROWADZENIE DLA NISKEGO NADPROŽA POD KĄTEM (FLL-CE)"},{"$nulls":10},"Wolna przestrzeń nad nadprożem","Volný prostor nad překladem","Free room above lintel","Freiraum über Sturz","Wolna przestrzeń nad nadprożem","RETOMBEE DE LINTEAU DISPONIBLE","Vrije ruimte boven latei","Vaba ruum laeni","vapaa ylätila","свободное пространство над проемом"]
[{"$nulls":6},{"$f":"VLOOKUP(AG80,AG6:AR100,$AE$1+1,FALSE)","v":"Punkty mocowania, jeżeli"},null,"D>=4500",{"$nulls":23},"Wysokość powyżej otworu montażowego powierzchni","Výška montážní plochy nad otvorem","Height of frame above opening","Höhe über Montagefläche Loch","Wysokość powyżej otworu montażowego powierzchni","HAUTEUR AU-DESSUS DU TROU DE SURFACE DE MONTAGE","Hoogte frame boven latei","Raami kõrgus ava kohal","Rungon korkeus oviaukon yläpuolella.","высота конструкции ворот над проемом"]
[{"$nulls":6},"X",{"$f":"VLOOKUP(AG71,AG6:AR100,$AE$1+1,FALSE)","v":"Punkt mocowania nr 1"},null,null,"H",{"$f":"IF(OR(K3=\"\",K5=\"\"),\"\",K5)","v":""},{"$nulls":20},"Wolna przestrzeń W LEWO","Volný prostor vlevo","Free side room left","Freiraum LINKS","Wolna przestrzeń W LEWO","ECOINCON GAUCHE","Vrije zijruimte links","Vaba küljeruum vasakul","vapaa tila vasemalla","свободное боковое пространство СЛЕВА"]
[{"$nulls":6},"Y",{"$f":"VLOOKUP(AG72,AG6:AR100,$AE$1+1,FALSE)","v":"Punkt mocowania nr 2"},null,null,"(X/3)*2",{"$f":"IF(OR(K3=\"\",K5=\"\"),\"\",(L66/3)*2)","v":""},{"$nulls":9},{"$f":"AG12","v":"PROWADZENIE DLA NISKEGO NADPROŽA POD KĄTEM (FLL-CE)"},{"$nulls":3},{"$f":"VLOOKUP(AG96,AG2:AR97,$AE$1+1,FALSE)","v":"Kod:"},{"$f":"VLOOKUP(AG97,AG2:AR97,$AE$1+1,FALSE)","v":"Wersja:"},{"$nulls":5},"Wolna przestrzeń W PRAWO","Volný prostor vravo","Free side room right","Freiraum RECHTS","Wolna przestrzeń W PRAWO","ECOINCON DROITE","Vrije zijruimte rechts","Vaba küljeruum paremal","vapaa tila oikealla","свободное боковое пространство СПРАВА"]
[{"$nulls":6},"Y2",{"$f":"VLOOKUP(AG73,AG8:AR102,$AE$1+1,FALSE)","v":"Punkt mocowania nr 3"},null,null,"X/3",{"$f":"IF(OR(K3=\"\",K5=\"\"),\"\",(L66/3))","v":""},{"$nulls":13},"010-2",1939,{"$nulls":5},"Głębokość prowadzenia poziomego","Hloubka vedení","Back room","Einbautiefe","Głębokość prowadzenia poziomego","REFOULEMENT HORS-TOUT","Inbouwdiepte","Sügavus","tila takana","монтажная глубина"]
[{"$nulls":32},"Głębokość prowadzenia poziomego","Úhel sklonu střechy","Gradient of the roof","Deckenwinkel","Głębokość prowadzenia poziomego","PENTE DU TOIT","Hellingshoek van het dak","Katusekalle","Katon kaltevuus","уклон крыши"]
[{"$nulls":32},"Punkt mocowania dla profilu zamkn","Kotvící body pro jekl","Hanging point for sleeves","Aufhängepunkt für Vierkantrohr","Punkt mocowania dla profilu zamkn","POINT D'ANCRAG POUR FIXATION DU TUBE ","Bevestigingspunt voor kokers","Nelikantoru kinnituskoht","riiputuspiste holkille","точки крепления торсионной системы"]
[{"$nulls":32},{"$f":"VLOOKUP(AH71,AH71:AR163,$AE$1,FALSE)","v":"Punkt mocowania nr 1"},"Kotvící bod č. 1","1 st hanging point","1. Aufhängepunkt","Punkt mocowania nr 1","POINT D'ANCRAGE 1 SUSPENTE","1e ophangpunt","1.kinnituskoht","1. ripustuspiste","1 точка крепления горизонтальных направляющих"]
[{"$nulls":32},{"$f":"VLOOKUP(AH72,AH72:AR164,$AE$1,FALSE)","v":"Punkt mocowania nr 2"},"Kotvící bod č. 2","2 nd hanging point","2. Aufhängepunkt","Punkt mocowania nr 2","POINT D'ANCRAGE 2 SUSPENTE","2e ophangpunt","2.kinnituskoht","2. ripustuspiste","2 точка крепления горизонтальных направляющих"]
[{"$nulls":32},{"$f":"VLOOKUP(AH73,AH73:AR165,$AE$1,FALSE)","v":"Punkt mocowania nr 3"},"Kotvící bod č. 3","3 rd hanging point","3. Aufhängepunkt","Punkt mocowania nr 3","POINT D'ANCRAGE 3 SUSPENTE","3e ophangpunt","3. kinnituskohta","3. ripustuspiste","3 точка крепления горизонтальных направляющих"]
[{"$nulls":32},{"$f":"VLOOKUP(AH74,AH74:AR165,$AE$1,FALSE)","v":"Wolny przestrzeń nad nadproźem"},"Volný prostor nad překladem","Free room above mounting surface","Freiplatz auf der Mountageplatz","Wolny przestrzeń nad nadproźem","Espace au-dessus de la surface de montage","Ruimte boven montagevlak","Vaba ruum ülalpool paigalduspinda","Vapaa tila asennuspisten kohdalla","технологический зазор"]
[{"$nulls":32},{"$f":"VLOOKUP(AH75,AH75:AR166,$AE$1,FALSE)","v":"Sterowanie ręczne"},"Ruční ovládání","Manually operated","Handbedienung","Sterowanie ręczne","PORTE MANUELLE","Handbediend","Käsitsi avatav","Käsikäyttöinen","ручное управление"]
[{"$nulls":32},"Obie strony","Obě strany","Both sided","Beide Seiten","Obie strony","LES 2 COTES","Beide zijden","Mõlemal pool","\nKaksipuoleinen","обе стороны"]
[{"$nulls":32},"Sterowanie elektr. lub za pom. przekł. łańc.","Ovládání elektricky nebo řetězovým převodem","Electrical or hauling chain operated","Elektrisch- oder Haspelkettenbedient","Sterowanie elektr. lub za pom. przekł. łańc.","PORTE MOTORISEE OU AVEC TREUIL A CHAINE","Elektrisch- of handketting bediend","Elektriliselt või taliga avatav","Sähkö- tai ketjukäytöinen","электрическое управление или с помощью цепи"]
[{"$nulls":32},"Silnik lub przekł. łańc.","Motor nebo řetěz. př.","Motor or chain side","Motor-oder Kettenseite","Silnik lub przekł. łańc.","ECOINCON LIBRE A COTE DE MOTEUR","Motor- of kettingzijde","Mootori või tali pool","Mootorin tai ketjun puolinen","сторона цепи или мотора"]
[{"$nulls":32},"Głębokość prowadzenia","Hloubka vedení","Back room","Einbautiefe","Głębokość prowadzenia","REFOULEMENT HORS-TOUT","Inbouwdiepte","Sügavus","Tila takana","монтажная глубина"]
[{"$nulls":32},"Punkty mocowania, jeżeli","Kotvící bod, když je","Hanging point if","Aufhängepunkte, wenn","Punkty mocowania, jeżeli","POINT D'ANCRAGE DES SUSPENTES, SI","Ophangpunt, als","Kinnituskoht, kui ","Ripustuspiste jos","точки крепления горизонтальных направляющих, если"]
[{"$nulls":32},"Punkty mocowania","Kotvící bod","Hanging point","Aufhängepunkte","Punkty mocowania","POINT D'ANCRAGE DES SUSPENTES","Ophangpunt","Kinntuskoht","Ripustuspiste","точка крепления"]
[{"$nulls":32},"Wolna przestrzeń nad nadprożem (min.)","Volný prostor nad překladem","Free room above lintel","Freiraum über Sturz","Wolna przestrzeń nad nadprożem (min.)","RETOMBEE DE LINTEAU DISPONIBLE","Vrije ruimte boven latei","Vaba ruum sillusest  laeni","Tila oviaukon päällä","свободное пространство над проемом"]
[{"$nulls":32},"Oś wału nad nadprożem","Osa hřídele nad překladem","Height of shaft above lintel","Mitte Achse zum Sturz","Oś wału nad nadprożem","POSITIONNEMENT AXE DE l'ARBRE DE LINTEAU","Center as boven latei","Kesktelg","Akseli ovipalkkin päällä","центральная ось вала"]
[]
[]
[{"$nulls":32},"Wykonał:","Sestavil:","Designed by:","Aufgestellt:","Wykonał:","DESSINE PAR:","Getekend door:","Joonestatud:","\nSuunnitellut:","спроектировано:"]
[{"$nulls":32},"Skorygował:","Upravil:","Checked by","Bereinigt:","Skorygował:","MODIFIE PAR:","Gecontroleerd door:","Kontrollitud:","Tarkistanut","проверил:"]
[{"$nulls":32},"Skorygowano dnia:","Schváleno - datum:","Approved by - date:","Bereinigt am:","Skorygowano dnia:","MODIFIE LE (DATE):","Goedgekeurd datum:","Kinnitatud:","\nHyväksytty - päivämäärä:","одобрил-дата:"]
[{"$nulls":32},"Nazwa pliku:","Název souboru:","File name:","Dateiname:","Nazwa pliku:","TITRE:","Bestandsnaam","Faili nimi:","\nTiedoston nimi:","навание файла:"]
[{"$nulls":32},"Data:","Datum:","Date:","Datum:","Data:","DATE:","Datum:","Kuupäev:","Päivämäärä:","дата:"]
[{"$nulls":32},"Podział.:","Měřítko","Scale:","Massst.:","Podział.:","ECHELLE:","Schaal:","Mõõtkava:","Mittakaava:","шкала:"]
[{"$nulls":32},"Format:","Formát: ","Sheet:","Format:","Format:","FORMAT:","Sheet:","Formaat:","Lista:","лист:"]
[{"$nulls":32},"PRZYGOTOWANIE KONSTRUKCYJNE","STAVEBNÍ PŘIPRAVENOST","INSTALLATION DRAWING ","BAUBEREITSCHAFT","PRZYGOTOWANIE KONSTRUKCYJNE","PLAN DE RESERVATIONS & ENCOMBREMENTS                                         ","INBOUWTEKENING VOORGE STANDAARD PLAFONDSYSTEEM","Paigaldusjoonis","ASENNUSPIIRUSTUS ","монтажный чертеж"]
[{"$nulls":32},"sprężyny nad nadprożem ","pružiny nad překladem ","springs above lintel "," Federn oberhalb des Sturzes ","sprężyny nad nadprożem ","RESSORTS AVANTS DEPORTES DU LINTEAU","verenpakket boven latei","vedrud ava kohal","jouset ovipalkkin päällä","нижнее расположение вала"]
[{"$nulls":32},"PROWADZENIE PIONOWE (VL-T)","VERTIKÁLNÍ SYSTÉM","VERTICAL LIFT SYSTEM","VERTIKALER BESCHLAG (VL-T)","PROWADZENIE PIONOWE (VL-T)","LEVEE VERTICALE (VL)","VERTICAAL PLAFONDSYSTEEM"]
[{"$nulls":32},"Kod:","Kód:","Code:","Kode:","Kod:","CODE:","Nr.:","Kood:","Koodi:","код:"]
[{"$nulls":32},"Wersja:","Verze:","Version:","Version:","Wersja:","VERSION:","Versie:","Versioon:","Versio:","версия:"]
[{"$nulls":32},"Nie jest wymagane","NENÍ POŽADOVÁNO","NOT REQUIRED","NICHT ERFORDELICH","Nie jest wymagane","Pas nécessaire","NIET BENODIGD","Mitte vajalik","EI VAADITTU","НЕ ТРЕБУЕТСЯ"]
[]
[{"$nulls":32},"Prosimy o wypełnienie pól oznaczonych kolorem!","Prosím, vyplňte pole, která jsou označena barevně!","Please, fill in the fields that are marked in color!","Fülen Sie bitte markierte Felder!","Prosimy o wypełnienie pól oznaczonych kolorem!","S'il vous plaît remplissez les champs qui sont marqués en couleur!","Vul a.u.b. de gemarkeerde velden in!","Palun täida värvilised väljad!","\nTäytä kentät, jotka on merkitty värillä!","пожалуйста, заполните поля обозначенные цветом!"]
[]
[{"$nulls":32},"Sterowanie","Ovládání","Operated","Bedienung","Sterowanie","PORTE","Bediening","Avamine","Ohjattu","Тип управления"]
[{"$nulls":32},"ręcznie wykonany","ručně","manually","hand","ręcznie wykonany","MANUELLE","hand","käsitsi","manuaalisesti","вручную"]
[{"$nulls":32},"elektrycznie","elektricky","electrical ","elektrisch","elektrycznie","MOTORISEE","elektrisch","elektriliselt","sähköisesti","электрическое управление или с помощью цепи"]
[{"$nulls":32},"Łańcuch napędu","řetězovým převodem","hauling chain operated","Haspelkette","Łańcuch napędu","TREUIL A CHAINE","handketting","taliga","ketjukäyttöinen","\nцепной привод\nцепной привод"]
[]
[{"$nulls":32},"Pozycja sylnika","Umístění motoru","Position of motor","Antriebsposition","Pozycja sylnika","LA POSITION MOTEUR","Positie van de motor","mootori asukohta","Mootorin asema","расположение мотора"]
[{"$nulls":32},"Po lewej stronie","Na levé straně","On the left side","Auf der linken Seiten","Po lewej stronie","SUR LE COTE GAUCHE","Aan de linkerzijde","vasakul küljel","Vasemallla","с левой стороны"]
[{"$nulls":32},"Po prawej strony","Na pravé straně","On the right side","Auf der rechten Seiten","Po prawej strony","SUR LE COTE DROIT","Aan de rechterzijde","paremal küljel","Oikealla","с правой стороны"]
[]
[{"$nulls":32},"Wariant montażu sprężyn","Variantní  montáž pružin","Additional spring mounting","Extra Aufhängung Federpaket","Wariant montażu sprężyn","MONTAGE DES RESSORTS","Extra veer monteren"]
[{"$nulls":32},"jeżeli W< 2000-STP-1 sprężyna (SPR-1)","když B<2000 - STP-1 pružina (SPR-1)","if W< 2000 - INSD-1 spring (SPR-1)","Wenn W< 2000 - BAUS-1 Feder (SPR-1)","jeżeli W< 2000-STP-1 sprężyna (SPR-1)","SI W< 2000 STP-1RESSORT (SPR-1)","als B<2000 - INSD-1 veer (SPR-1)"]
[{"$nulls":32},"jeżeli 2000>=W<6000-STP-2 sprężyna (SPR-2)","když 2000>=W<6000 - STP-2 pružiny (SPR-2)","if 2000>=W<6000 - INSD-2 springs (SPR-2)","Wenn 2000>=W<6000- BAUS-2 Federn (SPR-2)","jeżeli 2000>=W<6000-STP-2 sprężyna (SPR-2)","SI 2000>=W<6000 STP-2RESSORTS (SPR-2)","als 2000>=B<6000 - INSD-2 veren (SPR-2)"]
[{"$nulls":32},"jeżeli W>=6000-STP-4 sprężyna (SPR-4)","když W>=6000 = STP-4 pružiny (SPR-4)","if W>=6000 - INSD-4 springs (SPR-4)","Wenn W>=6000 - BAUS-4 Federn (SPR-4)","jeżeli W>=6000-STP-4 sprężyna (SPR-4)","SI W> 6000 STP-4RESSORTS (SPR-4)","als B>=6000 - INSD-4 veren (SPR-4)"]
[]
[{"$nulls":32},"powierzchnia montażowa dla silnika","Montážní plocha pro motor","Mounting surface for motor","Montagefläche für Antriebe","powierzchnia montażowa dla silnika","Surface de montage pour le moteur","Montagevlak voor motor","Mootori kinnituspind","Mootorin asenuspinta","Монтажная поверхность для мотора"]
[]
[{"$nulls":32},"Rodzaj panelu","Typ panelu","Type of panel","Paneel-Typ","Rodzaj panelu","Type de panneau","Panel type","Paneelitüüp","lamellin tyypi","Тип панели"]
[{"$nulls":32},"40mm","40mm","40mm","40mm","40mm","40mm","40mm","40 mm","40mm","40мм"]
[{"$nulls":32},"80mm","80mm","80mm","80mm","80mm","80mm","80mm","80 mm","80mm","80мм"]
[]
[{"$nulls":32},"Po 1 1/4 \"Wał, nadproża jest HL + 360 i oś wału jest HL + 210 mm","Když 1 1/4\" hřídel, tak překlad automaticky HL+360 a osa hřídele HL+210 mm","When 1 1/4 \"shaft, lintel is HL+360 and axis of shaft is HL + 210 mm","Wenn 1 1/4 \"Schaft, Sturz ist HL + 360 und Achse der Welle ist HL + 210 mm","Po 1 1/4 \"Wał, nadproża jest HL + 360 i oś wału jest HL + 210 mm","Lorsque 1 1/4 \"arbre, linteau est HL + 360 et l'axe ou l'arbre est HL + 210 mm","Wanneer 1 1/4 \"schacht, latei is HL + 360 en as van de as is HL + 210 mm","1 1/4\" võlli puhul, sillus on HL+360 ja võlli kesktelg on HL+210 MM","Kun 1 1/4 \"akseli, ovipalkki on HL + 360 ja akselin keskiviiva on HL + 210 mm","при использовании вала 1,25 дюйма перемычка (F) = HL+360 и ось вала (A) = HL+210мм"]
[]
[{"$nulls":32},"Typ moznazowych","Typ vedení","Type of rails","Laufschienen-Typ","Typ moznazowych","Type des rails","Type looprails","Siinide tüüp","Kiskojen tyyppi","Тип направляющих"]
[{"$nulls":32},"2\"","2\"","2\"","2\"","2\"","2\"","2\"","2\"","2\"","2\""]
[{"$nulls":32},"3\"","3\"","3\"","3\"","3\"","3\"","3\"","3\"","3\"","3\""]
[]
[{"$nulls":32},"Kąt","Úhel","Angle","Winkel","Kąt","Angle","Hoek","Vinkel","Kulma","Угол"]
[]
[{"$nulls":32},"5°"]
[{"$nulls":32},"10°"]
[{"$nulls":32},"15°"]
[{"$nulls":32},"20°"]
[{"$nulls":32},"28°"]
[]
[{"$nulls":32},{"$f":"VLOOKUP(AH136,AH136:AR230,$AE$1,FALSE)","v":"Punkt mocowania dla profilu zamkn 80x40x2"},"Kotvící body pro jekl 80x40x2","Hanging point for sleeves 80x40x2","Aufhängepunkt für Formröhre 80x40x2","Punkt mocowania dla profilu zamkn 80x40x2","POINT D'ANCRAG POUR FIXATION DU TUBE 80x40x2","Bevestigingspunt voor kokers 80x40x2","80x40x2 nelikantoru kinnituspunktid","Riipustuspiste holkeille 80x40x2","точки крепления торсионной системы 80x40x2"]

{"sheet":"SW-R","index":1,"n_rows":48,"n_cols":8,"rows_kept":48,"merged":[[8,0,10,0],[14,0,17,0],[39,2,40,8],[41,2,42,3],[41,4,42,6],[41,7,48,8],[43,2,44,3],[43,4,44,6],[45,2,46,3],[45,4,46,6],[47,2,48,3],[47,4,48,6]]}
{"$rows_empty":8}
[{"$f":"general!B17","v":"F= 230"}]
[]
[]
[]
[]
[]
[{"$f":"general!B21","v":"H= "}]
{"$rows_empty":11}
[null,80,null,"W=",{"$f":"general!E30","v":0},null,null,80]
{"$rows_empty":12}
[null,null,{"$f":"general!V2","v":"PROWADZENIE DLA NISKEGO NADPROŽA POD KĄTEM (FLL-CE)"}]
[]
[null,null,{"$f":"general!AG107","v":"Pozycja sylnika"},null,{"$f":"general!AG109","v":"Po prawej strony"}]
[]
[null,null,{"$f":"general!R60","v":"Wykonał:"}]
[]
[null,null,{"$f":"general!T60","v":"Skorygował:"}]
[]
[null,null,{"$f":"general!Z60","v":"Data:"}]

{"sheet":"SW-L","index":2,"n_rows":48,"n_cols":8,"rows_kept":48,"merged":[[8,0,10,0],[14,0,17,0],[39,2,40,8],[41,2,42,3],[41,4,42,6],[41,7,48,8],[43,2,44,3],[43,4,44,6],[45,2,46,3],[45,4,46,6],[47,2,48,3],[47,4,48,6]]}
{"$rows_empty":8}
[{"$f":"general!B17","v":"F= 230"}]
[]
[]
[]
[]
[]
[{"$f":"general!B21","v":"H= "}]
{"$rows_empty":11}
[null,80,null,"W=",{"$f":"general!E30","v":0},null,null,80]
{"$rows_empty":12}
[null,null,{"$f":"general!V2","v":"PROWADZENIE DLA NISKEGO NADPROŽA POD KĄTEM (FLL-CE)"}]
[]
[null,null,{"$f":"general!AG107","v":"Pozycja sylnika"},null,{"$f":"general!AG108","v":"Po lewej stronie"}]
[]
[null,null,{"$f":"general!R60","v":"Wykonał:"}]
[]
[null,null,{"$f":"general!T60","v":"Skorygował:"}]
[]
[null,null,{"$f":"general!Z60","v":"Data:"}]